bitfinex/quotes_BTCUSD_20250102
["timestamp","ask_amount","ask_price","bid_price","bid_amount"]
[1735840027879,0.00979086,96590.0,96589.0,0.00314679]
[1735840028885,0.01620452,96592.0,96591.0,0.25]
[1735840029131,0.00979086,96596.0,96593.0,0.15]
[1735840029370,0.00979086,96605.0,96604.0,0.20703]
[1735840030136,0.00979086,96605.0,96604.0,1.70703]
[1735840030629,0.00979086,96605.0,96604.0,1.5]
[1735840030868,0.01179086,96590.0,96582.0,0.207077]
[1735840031116,0.01179086,96590.0,96570.0,0.1852239]
[1735840031117,0.01179086,96590.0,96580.0,0.20708]
[1735840031361,0.01179086,96590.0,96578.0,0.02100014]
[1735840031362,0.16167718,96590.0,96578.0,0.02100014]
[1735840031597,0.46873718,96590.0,96565.0,0.02093794]
[1735840031888,0.46873718,96590.0,96567.0,0.211254]
[1735840032127,0.47073718,96590.0,96567.0,0.418363]
[1735840032361,0.207069,96586.0,96575.0,0.207092]
[1735840032611,0.00979086,96576.0,96575.0,0.207092]
[1735840033124,0.02599563,96576.0,96575.0,0.207092]
[1735840033375,0.02599563,96576.0,96567.0,0.004145]
[1735840033376,0.00979086,96575.0,96567.0,0.004145]
[1735840033623,0.00979086,96575.0,96564.0,0.207115]
[1735840034377,0.00979086,96575.0,96569.0,0.207105]
[1735840035113,0.01279086,96575.0,96569.0,0.207105]
[1735840035368,0.00979086,96575.0,96569.0,0.207105]
[1735840035615,0.01079086,96575.0,96565.0,1.5]
[1735840035881,0.01479086,96575.0,96565.0,1.5]
[1735840036619,0.01479086,96575.0,96563.0,0.207116]
[1735840036863,0.01479086,96575.0,96560.0,0.207123]
[1735840037107,0.01479086,96575.0,96563.0,1.5]
[1735840037377,0.01879086,96575.0,96563.0,1.5]
[1735840037665,0.01879086,96575.0,96560.0,0.207123]
[1735840037878,0.00979086,96575.0,96560.0,0.207123]
[1735840038183,0.01479086,96575.0,96561.0,1.5]
[1735840038739,0.71361718,96575.0,96557.0,8.55e-05]
[1735840039002,0.21691986,96558.0,96557.0,8.55e-05]
[1735840039302,0.91574618,96558.0,96557.0,0.00023276]
[1735840039840,1.16574618,96558.0,96557.0,0.00023276]
[1735840040068,1.21374618,96558.0,96557.0,0.00023276]
[1735840040601,1.23265782,96558.0,96557.0,0.00023276]
[1735840040850,1.23265782,96558.0,96557.0,0.00123276]
[1735840040851,1.24165782,96558.0,96557.0,0.00123276]
[1735840041073,1.23265782,96558.0,96557.0,0.00023276]
[1735840041287,1.31374618,96558.0,96557.0,0.00023276]
[1735840041493,1.31374618,96558.0,96543.0,8.54e-05]
[1735840041494,0.10979086,96544.0,96543.0,8.54e-05]
[1735840041701,0.42093618,96544.0,96543.0,8.54e-05]
[1735840041934,0.93867618,96544.0,96543.0,8.54e-05]
[1735840042139,0.93867618,96544.0,96527.0,8.55e-05]
[1735840042140,0.00979086,96528.0,96527.0,8.55e-05]
[1735840042360,0.00979086,96528.0,96527.0,0.00023278]
[1735840042361,0.63151718,96528.0,96527.0,0.00023278]
[1735840043443,0.78151718,96528.0,96527.0,0.00023278]
[1735840044511,0.00979086,96522.0,96510.0,0.014663]
[1735840044716,0.52753086,96522.0,96514.0,0.207222]
[1735840044949,0.52753086,96522.0,96519.0,0.207211]
[1735840045185,0.52753086,96522.0,96514.0,0.207222]
[1735840045420,0.52753086,96522.0,96510.0,0.014663]
[1735840045637,0.52753086,96522.0,96520.0,1.5]
[1735840045859,0.52753086,96522.0,96510.0,0.014663]
[1735840046281,0.63151718,96522.0,96510.0,0.014663]
[1735840046481,0.70881718,96522.0,96510.0,0.014663]
[1735840046696,0.71181718,96522.0,96510.0,0.014663]
[1735840046903,0.60783086,96522.0,96510.0,0.014663]
[1735840047078,0.60583086,96522.0,96510.0,0.014663]
[1735840047316,0.61483086,96522.0,96500.0,0.1953095]
[1735840047531,0.00979086,96506.0,96500.0,0.19579992]
[1735840047738,0.00979086,96506.0,96502.0,0.207247]
[1735840048148,0.00979086,96506.0,96505.0,1.5]
[1735840050853,0.01079086,96506.0,96505.0,1.5]
[1735840051911,0.01079086,96506.0,96500.0,0.01057602]
[1735840052334,0.00979086,96501.0,96500.0,0.01057602]
[1735840053871,0.65503086,96501.0,96500.0,0.01057602]
[1735840054075,0.52753086,96501.0,96500.0,0.01057602]
[1735840054315,0.51874,96501.0,96500.0,0.01057602]
[1735840054575,0.52853086,96501.0,96500.0,0.01057602]
[1735840054820,0.52174,96501.0,96500.0,0.01057602]
[1735840055091,0.53153086,96501.0,96500.0,0.01057602]
[1735840055601,0.52174,96501.0,96500.0,1.51057602]
[1735840056584,0.51874,96501.0,96500.0,1.51057602]
[1735840056795,0.51774,96501.0,96500.0,1.51057602]
[1735840057001,0.52853086,96501.0,96500.0,1.51057602]
[1735840057218,0.53153086,96501.0,96500.0,1.51057602]
[1735840057478,0.52853086,96501.0,96500.0,1.51057602]
[1735840057681,0.51774,96501.0,96500.0,1.51057602]
[1735840057851,0.51774,96501.0,96500.0,1.51157602]
[1735840059294,0.51774,96501.0,96500.0,1.51057602]
[1735840059504,0.52753086,96501.0,96500.0,1.51057602]
[1735840059713,0.52753086,96501.0,96500.0,1.51157602]
[1735840059931,0.52753086,96501.0,96500.0,0.01157602]
[1735840060141,0.52753086,96501.0,96500.0,0.01057602]
[1735840060550,0.57503086,96501.0,96500.0,0.01057602]
[1735840060754,0.69802662,96501.0,96500.0,0.01057602]
[1735840060965,0.69802662,96501.0,96500.0,0.01157602]
[1735840062337,0.5940403,96501.0,96500.0,0.01157602]
[1735840062535,0.5940403,96501.0,96500.0,0.01057602]
[1735840062744,0.207253,96500.0,96483.0,7e-05]
[1735840062953,0.207256,96499.0,96483.0,0.00021701]
[1735840063158,0.932253,96499.0,96484.0,0.207288]
[1735840063426,0.207265,96495.0,96483.0,0.00021701]
[1735840063590,0.725005,96495.0,96484.0,0.207288]
[1735840064013,0.01900944,96494.0,96483.0,0.00021701]
[1735840064273,0.53674944,96494.0,96483.0,0.00021701]
[1735840064959,0.0288003,96493.0,96483.0,0.00021701]
[1735840065175,0.00979086,96487.0,96484.0,0.207288]
[1735840065351,0.00979086,96491.0,96483.0,0.00021701]
[1735840065579,0.51774,96491.0,96485.0,1.5]
[1735840065755,0.51774,96491.0,96486.0,0.207282]
[1735840066136,0.51774,96491.0,96489.0,0.1]
[1735840066137,0.01904722,96490.0,96489.0,0.1]
[1735840066311,0.01904722,96490.0,96489.0,0.22698632]
[1735840066520,0.51774,96491.0,96490.0,0.230275]
[1735840066886,0.51774,96491.0,96478.0,0.09989632]
[1735840066887,0.00979086,96487.0,96481.0,0.207294]
[1735840067202,0.00979086,96487.0,96480.0,0.207296]
[1735840067410,0.00979086,96487.0,96482.0,1.5]
[1735840068192,0.01079086,96487.0,96482.0,1.5]
[1735840068625,0.01079086,96487.0,96484.0,0.207288]
[1735840069038,0.01079086,96487.0,96484.0,0.414576]
[1735840069039,0.001,96487.0,96484.0,0.414576]
[1735840069249,0.51774,96491.0,96488.0,0.207279]
[1735840069664,0.51774,96491.0,96490.0,0.230275]
[1735840069838,0.51774,96491.0,96490.0,0.33426132]
[1735840070077,0.51774,96491.0,96490.0,1.83426132]
[1735840070493,0.51774,96491.0,96490.0,1.98426132]
[1735840070905,0.51874,96491.0,96490.0,1.98426132]
[1735840071109,0.51774,96491.0,96490.0,1.98426132]
[1735840072327,0.51774,96491.0,96490.0,2.15477046]
[1735840072459,0.51874,96491.0,96490.0,2.15577046]
[1735840072658,0.51874,96491.0,96490.0,2.44499746]
[1735840072910,0.16400743,96491.0,96490.0,2.51909746]
[1735840073119,0.000171,96506.0,96505.0,0.64745214]
[1735840073315,0.000171,96506.0,96505.0,0.91678832]
[1735840073545,0.000171,96506.0,96505.0,0.84458746]
[1735840073750,0.000171,96506.0,96505.0,0.58422932]
[1735840075433,0.000171,96506.0,96505.0,2.11455464]
[1735840075677,0.001171,96506.0,96505.0,2.12055464]
[1735840076081,0.001171,96506.0,96505.0,2.11955464]
[1735840076082,0.000171,96506.0,96505.0,2.11955464]
[1735840076280,0.001171,96506.0,96505.0,2.12855464]
[1735840076593,0.001171,96506.0,96505.0,2.12355464]
[1735840077335,0.001171,96506.0,96505.0,2.12755464]
[1735840078189,0.001171,96506.0,96505.0,0.62755464]
[1735840078398,0.001171,96506.0,96505.0,0.22958876]
[1735840078600,0.001171,96506.0,96505.0,0.220243]
[1735840078974,0.001171,96506.0,96505.0,0.013]
[1735840079185,0.001131,96506.0,96505.0,0.013]
[1735840079390,0.001131,96506.0,96505.0,0.009]
[1735840079736,0.000131,96506.0,96505.0,0.003]
[1735840079893,0.000131,96506.0,96505.0,0.009]
[1735840080053,0.001131,96506.0,96505.0,0.009]
[1735840080244,0.001131,96506.0,96501.0,0.207251]
[1735840080448,0.001131,96506.0,96505.0,0.005]
[1735840080855,0.078431,96506.0,96505.0,0.005]
[1735840081055,0.078431,96506.0,96505.0,0.007]
[1735840081888,0.077431,96506.0,96505.0,0.002]
[1735840082136,0.29446286,96506.0,96505.0,0.002]
[1735840082340,0.29446286,96506.0,96505.0,0.006]
[1735840082550,0.29446286,96506.0,96505.0,0.002]
[1735840082982,0.29446286,96506.0,96505.0,0.004]
[1735840083185,0.00979086,96498.0,96491.0,1.5]
[1735840083363,0.00979086,96498.0,96492.0,0.207271]
[1735840083783,0.00979086,96498.0,96493.0,0.207268]
[1735840083992,0.00979086,96498.0,96491.0,1.5]
[1735840083993,0.00979086,96492.0,96491.0,1.5]
[1735840084199,0.05499086,96492.0,96491.0,1.5]
[1735840084410,0.26226186,96492.0,96491.0,1.5]
[1735840085663,0.36624818,96492.0,96488.0,8.55e-05]
[1735840085873,0.207273,96491.0,96488.0,8.55e-05]
[1735840086293,0.414546,96491.0,96488.0,8.55e-05]
[1735840086915,0.414546,96491.0,96488.0,0.0010855]
[1735840087121,0.418546,96491.0,96488.0,8.55e-05]
[1735840087323,0.13560323,96490.0,96488.0,8.55e-05]
[1735840087526,0.32105418,96489.0,96488.0,8.55e-05]
[1735840088174,0.21706786,96489.0,96488.0,8.55e-05]
[1735840088381,0.00979086,96489.0,96488.0,0.0010855]
[1735840088764,0.34785813,96489.0,96488.0,8.55e-05]
[1735840089011,0.35685813,96489.0,96488.0,0.0010855]
[1735840089421,0.35685813,96489.0,96488.0,0.00070564]
[1735840089832,0.36085813,96489.0,96488.0,0.00070564]
[1735840090047,0.02279086,96489.0,96488.0,0.00070564]
[1735840090259,0.02279086,96489.0,96483.0,0.00021701]
[1735840090260,0.00979086,96484.0,96483.0,0.00021701]
[1735840090479,0.48687718,96484.0,96483.0,0.00021701]
[1735840090690,0.58687718,96484.0,96483.0,0.00021701]
[1735840090897,0.10979086,96478.0,96477.0,8.56e-05]
[1735840091098,0.34607718,96478.0,96477.0,8.56e-05]
[1735840091504,0.30010486,96472.0,96460.0,8.56e-05]
[1735840091715,0.40409118,96472.0,96460.0,8.56e-05]
[1735840091922,0.65409118,96472.0,96460.0,8.56e-05]
[1735840092125,0.30002786,96461.0,96460.0,8.56e-05]
[1735840092343,0.40401418,96461.0,96460.0,0.00023284]
[1735840092761,0.45251418,96461.0,96460.0,0.00023284]
[1735840093394,0.70251418,96461.0,96460.0,0.00023284]
[1735840093602,0.49004986,96451.0,96431.0,0.0002]
[1735840093808,0.79403618,96451.0,96431.0,0.0002]
[1735840094014,1.31243618,96451.0,96431.0,0.0002]
[1735840094861,1.45558214,96451.0,96450.0,0.011]
[1735840095067,1.34579128,96451.0,96450.0,0.011]
[1735840095272,1.35558214,96451.0,96450.0,0.011]
[1735840095477,1.45558214,96451.0,96450.0,0.011]
[1735840095690,1.46458214,96451.0,96450.0,0.011]
[1735840095898,1.4097083,96451.0,96450.0,0.011]
[1735840096110,1.3097083,96451.0,96450.0,0.011]
[1735840096317,1.4127083,96451.0,96450.0,0.01]
[1735840096528,1.4217083,96451.0,96450.0,0.011]
[1735840096741,1.43793855,96451.0,96450.0,0.011]
[1735840097149,1.43793855,96451.0,96450.0,0.01]
[1735840097150,1.33766643,96451.0,96450.0,0.01]
[1735840097353,1.34666643,96451.0,96450.0,0.011]
[1735840098570,1.23043618,96451.0,96450.0,0.011]
[1735840099003,0.00979086,96432.0,96431.0,0.0002]
[1735840099221,1.01177718,96432.0,96431.0,0.0002]
[1735840099432,0.56719286,96431.0,96430.0,0.0002258]
[1735840099635,0.69680586,96425.0,96408.0,8.56e-05]
[1735840099854,1.31919218,96425.0,96424.0,0.00023273]
[1735840100096,0.21722886,96414.0,96413.0,0.00989573]
[1735840100351,1.17241518,96414.0,96413.0,0.00989573]
[1735840100570,1.07241518,96414.0,96413.0,0.00989573]
[1735840100796,1.17241518,96414.0,96413.0,0.00989573]
[1735840101016,1.22071518,96414.0,96413.0,0.00989573]
[1735840101474,1.24545792,96414.0,96413.0,0.00989573]
[1735840102552,1.25445792,96414.0,96413.0,0.00989573]
[1735840102761,0.207449,96409.0,96408.0,8.56e-05]
[1735840102969,0.82983532,96409.0,96408.0,8.56e-05]
[1735840103181,0.85457806,96409.0,96408.0,8.56e-05]
[1735840103387,0.82983532,96409.0,96408.0,8.56e-05]
[1735840103597,0.84852065,96409.0,96408.0,8.56e-05]
[1735840103812,0.82983532,96409.0,96408.0,8.56e-05]
[1735840104019,0.207479,96396.0,96394.0,0.127045]
[1735840104235,0.5184,96396.0,96394.0,0.127045]
[1735840104656,0.5184,96396.0,96395.0,0.33446532]
[1735840105061,0.5184,96396.0,96395.0,0.33194784]
[1735840105272,0.52054683,96396.0,96395.0,0.58194784]
[1735840105513,0.52054683,96396.0,96395.0,2.08194784]
[1735840105700,0.52654683,96396.0,96395.0,1.98194784]
[1735840106164,0.53254683,96396.0,96395.0,1.98194784]
[1735840106907,0.53254683,96396.0,96395.0,2.08194784]
[1735840107385,0.52054683,96396.0,96395.0,2.10277234]
[1735840107621,0.51854683,96396.0,96395.0,2.10277234]
[1735840107833,0.52154683,96396.0,96395.0,2.10277234]
[1735840108058,0.52054683,96396.0,96395.0,2.31512034]
[1735840108280,0.52054683,96396.0,96395.0,2.31612034]
[1735840108501,0.51854683,96396.0,96395.0,2.31612034]
[1735840108801,0.51854683,96396.0,96395.0,2.31812034]
[1735840109263,0.51854683,96396.0,96395.0,2.40832948]
[1735840109506,0.33025646,96396.0,96395.0,3.05462948]
[1735840109780,0.30325646,96396.0,96395.0,3.15462948]
[1735840110090,0.12671688,96396.0,96395.0,3.15462948]
[1735840110322,0.0493,96450.0,96425.0,0.023]
[1735840110591,0.00979086,96460.0,96455.0,0.207349]
[1735840110850,0.00979086,96469.0,96461.0,0.207337]
[1735840111095,0.00979086,96469.0,96456.0,0.10398632]
[1735840111373,0.0001712,96460.0,96456.0,0.10398632]
[1735840111832,0.0001712,96460.0,96452.0,0.207356]
[1735840112081,0.0001712,96460.0,96456.0,0.207346]
[1735840112317,0.0001712,96460.0,96456.0,0.414693]
[1735840112560,0.0001712,96460.0,96457.0,0.10398632]
[1735840112808,0.0001712,96460.0,96458.0,0.207344]
[1735840113046,0.0001712,96460.0,96459.0,1.70398632]
[1735840113290,0.0001712,96460.0,96459.0,1.5]
[1735840113520,0.0001712,96460.0,96459.0,1.60398632]
[1735840114037,0.0001712,96460.0,96459.0,1.5]
[1735840114248,0.0001712,96460.0,96450.0,0.18604029]
[1735840114249,0.0001712,96460.0,96451.0,0.207358]
[1735840114491,0.00996206,96460.0,96459.0,0.001]
[1735840114699,0.09126206,96460.0,96459.0,0.002]
[1735840115289,0.09126206,96460.0,96459.0,0.001]
[1735840115499,0.00979086,96452.0,96438.0,0.0205984]
[1735840115699,0.00979086,96455.0,96449.0,0.207363]
[1735840115938,0.00979086,96455.0,96450.0,0.20736]
[1735840116424,0.0091712,96460.0,96455.0,0.4147]
[1735840117043,0.0001712,96460.0,96457.0,0.414692]
[1735840117218,0.0001712,96460.0,96457.0,0.51867832]
[1735840117423,0.0001712,96460.0,96459.0,0.207341]
[1735840117682,0.0091712,96460.0,96459.0,0.207341]
[1735840117912,0.0091712,96460.0,96459.0,0.33432732]
[1735840118086,0.0091712,96460.0,96459.0,1.83432732]
[1735840118301,0.0001712,96460.0,96459.0,1.83432732]
[1735840118521,0.0011712,96460.0,96459.0,1.83432732]
[1735840120059,0.0021712,96460.0,96459.0,1.83432732]
[1735840121774,0.0021712,96460.0,96459.0,2.13514646]
[1735840122180,0.0021712,96460.0,96459.0,2.08264346]
[1735840123160,0.0021712,96460.0,96459.0,1.99243432]
[1735840123508,0.0001712,96460.0,96459.0,1.83432732]
[1735840123709,0.0001712,96460.0,96459.0,1.83732732]
[1735840123914,0.0001712,96460.0,96459.0,1.83432732]
[1735840124361,0.0011712,96460.0,96459.0,2.13186046]
[1735840124571,0.0011712,96460.0,96459.0,2.11639646]
[1735840124776,0.0011712,96460.0,96459.0,2.02618732]
[1735840124985,0.0011712,96460.0,96459.0,1.83732732]
[1735840125219,0.0011712,96460.0,96459.0,1.84032732]
[1735840125449,0.0011712,96460.0,96459.0,0.31732732]
[1735840125661,0.0011712,96460.0,96459.0,0.31432732]
[1735840125871,0.0011712,96460.0,96459.0,0.31732732]
[1735840126082,0.0011712,96460.0,96459.0,1.81732732]
[1735840126291,0.0011712,96460.0,96459.0,2.15708846]
[1735840126514,0.0011712,96460.0,96459.0,1.84032732]
[1735840126754,0.0001712,96460.0,96459.0,1.83732732]
[1735840126991,0.0011712,96460.0,96459.0,1.81432732]
[1735840127239,0.0011712,96460.0,96459.0,1.81132732]
[1735840127483,0.0011712,96460.0,96459.0,1.84032732]
[1735840127726,0.0011712,96460.0,96459.0,1.81432732]
[1735840128229,0.0021712,96460.0,96459.0,1.81732732]
[1735840128482,0.0011712,96460.0,96459.0,1.81432732]
[1735840128745,0.0011712,96460.0,96459.0,1.81132732]
[1735840128995,0.0011712,96460.0,96459.0,2.02753646]
[1735840129234,0.0011712,96460.0,96459.0,2.62805646]
[1735840129701,0.0021712,96460.0,96459.0,2.63105646]
[1735840129950,0.0001712,96460.0,96459.0,2.50701946]
[1735840130414,0.0011712,96460.0,96459.0,2.39379346]
[1735840130632,0.00014754,96470.0,96459.0,2.39379346]
[1735840130633,0.00014754,96470.0,96469.0,0.64752914]
[1735840130883,0.00014754,96470.0,96469.0,1.36925346]
[1735840131337,0.00014754,96470.0,96469.0,2.86925346]
[1735840132115,0.00014754,96470.0,96469.0,2.88007194]
[1735840133310,0.00014754,96470.0,96469.0,2.87907194]
[1735840133529,0.00114754,96470.0,96469.0,2.88707194]
[1735840133767,0.00114754,96470.0,96469.0,2.89107194]
[1735840134337,5.4e-07,96470.0,96469.0,2.89107194]
[1735840134591,5.4e-07,96470.0,96469.0,2.29633394]
[1735840134856,0.000131,96506.0,96469.0,2.29633394]
[1735840134857,0.000131,96506.0,96498.0,0.1]
[1735840135091,0.0002784,96506.0,96505.0,0.230243]
[1735840135327,0.0002784,96506.0,96505.0,0.33422932]
[1735840135579,0.0002784,96506.0,96505.0,1.83422932]
[1735840136580,0.0072784,96506.0,96505.0,1.83422932]
[1735840136831,0.0102784,96506.0,96505.0,1.83422932]
[1735840137070,0.0032784,96506.0,96505.0,1.83422932]
[1735840137317,0.0072784,96506.0,96505.0,1.83522932]
[1735840137595,0.0092784,96506.0,96505.0,1.83522932]
[1735840137849,0.0022784,96506.0,96505.0,1.83422932]
[1735840138109,0.0002784,96506.0,96505.0,1.83422932]
[1735840138362,0.0062784,96506.0,96505.0,2.6059664]
[1735840139550,0.0062784,96506.0,96505.0,2.6049664]
[1735840139551,0.0002784,96506.0,96505.0,2.6049664]
[1735840139803,0.0002784,96506.0,96505.0,2.6089664]
[1735840140035,0.0002784,96506.0,96505.0,2.33424826]
[1735840140288,0.0002784,96506.0,96505.0,2.12635826]
[1735840140489,0.0002784,96506.0,96505.0,1.97811626]
[1735840140715,0.0002384,96506.0,96505.0,0.49911626]
[1735840140951,0.0002384,96506.0,96505.0,0.49411626]
[1735840141155,0.0012384,96506.0,96505.0,0.50511626]
[1735840141564,0.0012384,96506.0,96505.0,0.50211626]
[1735840141991,0.0012384,96506.0,96505.0,0.5923254]
[1735840142193,0.0012384,96506.0,96505.0,2.07599726]
[1735840142615,0.0012384,96506.0,96505.0,2.1662064]
[1735840143864,0.3012384,96506.0,96505.0,2.1692064]
[1735840144096,0.3012384,96506.0,96505.0,2.3192064]
[1735840144325,0.2390664,96506.0,96505.0,2.3192064]
[1735840144601,0.1976184,96506.0,96505.0,2.3246064]
[1735840144853,0.0939984,96506.0,96505.0,2.4246064]
[1735840145118,0.0819984,96506.0,96505.0,2.4246064]
[1735840145394,0.04231014,96506.0,96505.0,2.4246064]
[1735840145710,0.0458,96552.0,96546.0,0.207153]
[1735840145926,0.000171,96557.0,96556.0,0.330133]
[1735840146198,0.00066254,96557.0,96556.0,0.43411932]
[1735840146444,0.00066254,96557.0,96556.0,1.93411932]
[1735840147208,0.00066254,96557.0,96556.0,1.96767075]
[1735840147209,0.00666254,96557.0,96556.0,1.96767075]
[1735840147467,0.00666254,96557.0,96556.0,1.93411932]
[1735840147686,0.00766254,96557.0,96556.0,1.93411932]
[1735840147929,0.00066254,96557.0,96556.0,1.93411932]
[1735840148183,0.00166254,96557.0,96556.0,1.93411932]
[1735840149453,0.00066254,96557.0,96556.0,1.81111932]
[1735840149720,0.00066254,96557.0,96551.0,0.207144]
[1735840149975,0.0826,96556.0,96552.0,0.10398632]
[1735840150228,0.0826,96556.0,96553.0,0.20714]
[1735840150497,0.0826,96556.0,96554.0,0.10398632]
[1735840150771,0.0826,96556.0,96555.0,0.207135]
[1735840150970,0.00066254,96557.0,96556.0,0.002]
[1735840151224,0.00066254,96557.0,96556.0,0.10598632]
[1735840152411,0.00066254,96557.0,96556.0,0.10398632]
[1735840152651,0.00066254,96557.0,96547.0,0.39319129]
[1735840152652,0.002,96556.0,96540.0,0.207167]
[1735840152893,0.0498,96548.0,96534.0,0.20718]
[1735840153142,0.0797,96538.0,96524.0,0.02066094]
[1735840153394,0.0797,96538.0,96529.0,0.207191]
[1735840153645,0.0797,96538.0,96525.0,0.10398632]
[1735840153646,0.00979086,96528.0,96525.0,1.5]
[1735840153872,0.00979086,96521.0,96506.0,0.207241]
[1735840154122,0.00979086,96521.0,96507.0,0.10398632]
[1735840154381,0.00979086,96513.0,96512.0,1.5]
[1735840154611,0.14179086,96513.0,96512.0,1.5]
[1735840154843,0.14179086,96513.0,96470.0,0.20630183]
[1735840154844,0.00979086,96506.0,96470.0,0.20630183]
[1735840155109,0.09229086,96506.0,96483.0,0.207289]
[1735840155579,0.29953186,96506.0,96491.0,0.207271]
[1735840155837,0.29953186,96506.0,96478.0,0.207299]
[1735840156097,0.00979086,96481.0,96471.0,0.41463]
[1735840156336,0.00979086,96487.0,96478.0,1.5001474]
[1735840156593,0.0809,96490.0,96483.0,0.207289]
[1735840157040,0.0809,96490.0,96479.0,0.31128232]
[1735840157547,0.001,96481.0,96479.0,0.31128232]
[1735840157807,0.001,96481.0,96479.0,0.10398632]
[1735840158028,0.001,96481.0,96478.0,1.5001474]
[1735840158029,0.0491,96480.0,96478.0,1.5001474]
[1735840158270,0.00979086,96479.0,96478.0,0.0001474]
[1735840158574,0.08569086,96479.0,96478.0,0.0001474]
[1735840159572,0.08869086,96479.0,96478.0,0.0001474]
[1735840160049,0.08869086,96479.0,96457.0,0.041496]
[1735840160050,0.09569086,96479.0,96457.0,0.041496]
[1735840160260,0.0807,96461.0,96451.0,1.5]
[1735840160473,0.00979086,96458.0,96451.0,1.5]
[1735840160685,0.00979086,96458.0,96450.0,0.01023314]
[1735840160897,0.00979086,96453.0,96450.0,0.01023314]
[1735840161116,0.00979086,96453.0,96451.0,0.041499]
[1735840161321,0.00979086,96453.0,96450.0,0.01023314]
[1735840161730,0.0466,96460.0,96451.0,0.207359]
[1735840161939,0.0466,96460.0,96455.0,0.207349]
[1735840162137,0.0466,96460.0,96451.0,0.10798632]
[1735840162138,0.0466,96460.0,96457.0,0.207346]
[1735840162347,0.0805,96479.0,96476.0,0.207304]
[1735840162559,0.0805,96479.0,96477.0,0.31128932]
[1735840162765,0.0825,96479.0,96477.0,0.31128932]
[1735840163182,0.0805,96479.0,96477.0,0.31128932]
[1735840163635,0.0865,96479.0,96477.0,0.31128932]
[1735840164048,0.0805,96479.0,96477.0,0.31128932]
[1735840164247,0.0822,96492.0,96477.0,0.10398632]
[1735840164470,0.0822,96492.0,96489.0,0.207275]
[1735840165630,0.08229159,96492.0,96490.0,1.5]
[1735840166268,0.08229159,96492.0,96491.0,0.207273]
[1735840166503,0.08229159,96492.0,96491.0,0.31125932]
[1735840166952,9.159e-05,96492.0,96491.0,1.81125932]
[1735840167160,9.159e-05,96492.0,96491.0,1.83425932]
[1735840167389,9.159e-05,96492.0,96491.0,1.81125932]
[1735840169942,9.159e-05,96492.0,96491.0,1.91125932]
[1735840170116,9.159e-05,96492.0,96491.0,1.81425932]
[1735840170385,9.159e-05,96492.0,96491.0,0.31425932]
[1735840170587,9.159e-05,96492.0,96491.0,0.31625932]
[1735840170791,9.159e-05,96492.0,96491.0,0.43925932]
[1735840170994,9.159e-05,96492.0,96491.0,1.93725932]
[1735840171132,9.159e-05,96492.0,96491.0,1.93925932]
[1735840171350,9.159e-05,96492.0,96491.0,1.93625932]
[1735840171756,9.159e-05,96492.0,96491.0,1.93925932]
[1735840171956,9.159e-05,96492.0,96491.0,1.93625932]
[1735840172364,9.159e-05,96492.0,96491.0,1.93725932]
[1735840172643,9.159e-05,96492.0,96491.0,1.93425932]
[1735840172823,9.159e-05,96492.0,96491.0,1.81325932]
[1735840173057,9.159e-05,96492.0,96491.0,0.31625932]
[1735840173266,9.159e-05,96492.0,96491.0,0.31325932]
[1735840173449,9.159e-05,96492.0,96491.0,0.002]
[1735840173689,0.00988245,96492.0,96491.0,0.002]
[1735840173945,0.09158245,96492.0,96491.0,0.002]
[1735840174573,0.00979086,96480.0,96453.0,0.1]
[1735840174821,0.34218686,96480.0,96458.0,0.207343]
[1735840175089,0.34218686,96480.0,96463.0,0.207332]
[1735840175330,0.1251,96480.0,96464.0,0.0208305]
[1735840175566,0.13489086,96480.0,96476.0,0.207305]
[1735840175805,0.13489086,96480.0,96472.0,0.207313]
[1735840176048,0.1311,96480.0,96479.0,0.0010855]
[1735840176261,0.14089086,96480.0,96479.0,8.55e-05]
[1735840176464,0.14989086,96480.0,96479.0,0.0010855]
[1735840176622,0.15389086,96480.0,96479.0,0.0010855]
[1735840177198,0.1401,96480.0,96479.0,0.0010855]
[1735840177412,0.14989086,96480.0,96479.0,0.0010855]
[1735840177648,0.1271,96480.0,96479.0,8.55e-05]
[1735840178065,0.1331,96480.0,96479.0,8.55e-05]
[1735840178284,0.008,96480.0,96479.0,0.20407182]
[1735840178748,0.016,96480.0,96479.0,0.20407182]
[1735840179011,0.01,96480.0,96479.0,1.70407182]
[1735840179211,0.014,96480.0,96479.0,1.70407182]
[1735840179422,0.009,96480.0,96479.0,1.70407182]
[1735840179635,0.009,96480.0,96479.0,1.85407182]
[1735840179841,0.006,96480.0,96479.0,1.85407182]
[1735840180264,0.006,96480.0,96479.0,1.85507182]
[1735840180896,0.008,96480.0,96479.0,1.85507182]
[1735840181337,0.09299086,96495.0,96490.0,0.207274]
[1735840182368,0.00109159,96492.0,96490.0,0.207274]
[1735840183596,9.159e-05,96492.0,96491.0,0.10398632]
[1735840183823,0.00109159,96492.0,96491.0,0.10398632]
[1735840184159,0.00109159,96492.0,96491.0,1.5]
[1735840184558,0.00409159,96492.0,96491.0,1.5]
[1735840184783,0.01388245,96492.0,96487.0,0.22779863]
[1735840184978,0.01388245,96492.0,96484.0,0.207286]
[1735840184979,0.01288245,96492.0,96484.0,0.207286]
[1735840185432,0.01388245,96492.0,96487.0,0.207279]
[1735840185625,0.01688245,96492.0,96487.0,0.207279]
[1735840185799,0.00988245,96492.0,96487.0,0.207279]
[1735840185998,9.159e-05,96492.0,96490.0,0.207273]
[1735840186267,0.01622147,96491.0,96490.0,0.207273]
[1735840186494,0.00109159,96492.0,96490.0,0.31125932]
[1735840186704,0.00109159,96492.0,96491.0,0.10398632]
[1735840186916,0.00109159,96492.0,96491.0,1.60398632]
[1735840187129,0.00109159,96492.0,96491.0,1.5]
[1735840187691,9.159e-05,96492.0,96491.0,1.5]
[1735840187865,0.00109159,96492.0,96491.0,1.5]
[1735840188309,0.00109159,96492.0,96482.0,0.02059543]
[1735840188310,0.00979086,96487.0,96483.0,0.20729]
[1735840188535,0.00979086,96487.0,96483.0,0.41458]
[1735840188900,0.00979086,96487.0,96485.0,0.207286]
[1735840189099,9.159e-05,96492.0,96479.0,0.2073825]
[1735840189100,0.00979086,96480.0,96479.0,8.55e-05]
[1735840189304,0.00979086,96484.0,96479.0,8.55e-05]
[1735840189478,0.00979086,96480.0,96479.0,8.55e-05]
[1735840190248,0.00979086,96480.0,96479.0,0.0010855]
[1735840191273,0.00979086,96480.0,96479.0,0.0020855]
[1735840191478,0.00979086,96480.0,96479.0,8.55e-05]
[1735840191716,0.00979086,96480.0,96479.0,0.0010855]
[1735840192133,0.00979086,96480.0,96479.0,8.55e-05]
[1735840192539,0.01479086,96480.0,96479.0,8.55e-05]
[1735840192993,0.01379086,96480.0,96479.0,8.55e-05]